Cogmind - Beta 11.1 *** ADVENTURER MODE // 2022.08.22 @ 19:14:08 Player: darlorth Result: Self-destructed Performance ------------- Evolutions (2) 1000 Regions Visited (5) 1000 Robots Destroyed (33) 165 Value Destroyed (522) 522 Prototype IDs (3) 60 Alien Tech Used (0) 0 Bonus (300) 300 TOTAL SCORE: 3047 Bonus ------- Aligned with FarCom 300 Cogmind --------- Core Integrity 434/550 Matter 300/300 Energy 100/100 System Corruption 0% Temperature Cool (6) Movement Treading (160) Location -8/Materials Parts ------- > --- POWER (1) -------- (None) > --- PROPULSION (2) --- Light Treads > --- UTILITY (4) ------ Medium Storage Unit > --- WEAPON (4) ------- Assault Rifle > --- INVENTORY (10) --- Light Treads Improved Heat Sink Large Storage Unit Mini Grenade Launcher Datajack Longsword +1 Peak State ------------ > --- POWER ------------ (None) > --- PROPULSION ------- Light Treads Light Treads > --- UTILITY ---------- Medium Storage Unit Improved Terrain Scanner > --- WEAPON ----------- Light Assault Rifle Longsword +1 > --- INVENTORY -------- Ion Engine Light Treads Light Treads Improved Heat Sink Large Storage Unit Assault Rifle Light Assault Rifle Mini Grenade Launcher Datajack [Rating: 16] Favorites ----------- Power Ion Engine Engine Ion Engine Propulsion Light Treads Treads Light Treads Utility Improved Terrain Scanner Device Improved Terrain Scanner Storage Medium Storage Unit Protection Improved Light Armor Plating Weapon Light Assault Rifle Ballistic Gun Light Assault Rifle Launcher Mini Grenade Launcher Slashing Weapon Longsword +1 Build | -11 -10 -10 -10 -9 -8 ------- Run | Scr Mat Min Exi Min Mat Slots Evolved 4 | . . . . . 4 Power . | . . . . . . Propulsion . | . . . . . . Utility 2 | . . . . . 2 Weapon 2 | . . . . . 2 Parts Attached 20 | 7 6 1 1 . 5 Power 4 | 1 2 . . . 1 Engine 4 | 1 2 . . . 1 Core . | . . . . . . Reactor . | . . . . . . Propulsion 6 | 2 3 . . . 1 Treads 6 | 2 3 . . . 1 Leg . | . . . . . . Wheel . | . . . . . . Hover . | . . . . . . Flight . | . . . . . . Utility 4 | 2 1 . . . 1 Device 1 | 1 . . . . . Storage 2 | 1 1 . . . . Processor . | . . . . . . Hackware . | . . . . . . Protection 1 | . . . . . 1 Artifact . | . . . . . . Weapon 6 | 2 . 1 1 . 2 Energy Gun . | . . . . . . Energy Cannon . | . . . . . . Ballistic Gun 4 | 2 . 1 . . 1 Ballistic Cannon . | . . . . . . Launcher 1 | . . . . . 1 Special Weapon . | . . . . . . Impact Weapon . | . . . . . . Slashing Weapon 1 | . . . 1 . . Piercing Weapon . | . . . . . . Special Melee Weapon . | . . . . . . Unidentified Prototypes 1 | . . . 1 . . Parts Lost 10 | . 3 1 . . 6 Power 3 | . 1 1 . . 1 Propulsion 4 | . 2 . . . 2 Utility 2 | . . . . . 2 Weapon 1 | . . . . . 1 Highest Loss Streak 6 | . 3 1 . . 6 To Critical Strikes 1 | . . . . . 1 Average Slot Usage (%) 85 | . 92 85 78 71 57 Engine 9 | . 13 9 . . 8 Treads 26 | . 27 28 28 28 16 Device 13 | . 14 14 14 14 7 Storage 13 | . 14 14 14 14 9 Ballistic Gun 20 | . 22 19 21 14 8 Naked Turns . | . . . . . . Heaviest Build 20 | 13 18 17 13 12 20 Greatest Support 40 | 40 40 40 40 40 40 Greatest Overweight (x) . | . . . . . . Average Overweight (x) . | . . . . . . Largest Inventory Capacity 10 | 8 10 10 10 10 10 Average Capacity 9 | 7 9 10 10 10 10 Most Carried 9 | 5 7 8 9 9 9 Average Carried 5 | 1 4 7 8 9 7 Final Capacity 10 | 8 10 10 10 10 10 Final Carried 9 | 2 6 8 9 9 6 Class Distribution -------------------- 100% | Mutant Dominant Class ---------------- Mutant | -10/Materials Mutant | -10/Mines Mutant | -10/Exiles Mutant | -9/Mines Mutant | -8/Materials Resources | -11 -10 -10 -10 -9 -8 ----------- Run | Scr Mat Min Exi Min Mat Matter Collected 587 | 300 177 32 . . 78 Remotely . | . . . . . . Salvage Created 814 | 140 437 145 . . 92 Parts 69 | 12 39 11 . . 7 Haulers Intercepted 1 | . 1 . . . . Recyclers Shooed 1 | 1 . . . . . Parts Field Recycled . | . . . . . . Retrieved Matter . | . . . . . . Parts Self-Destructed . | . . . . . . Prevented . | . . . . . . Kills | -11 -10 -10 -10 -9 -8 ------- Run | Scr Mat Min Exi Min Mat Combat Hostiles Destroyed 22 | . 13 4 . . 5 Guns 19 | . 13 4 . . 2 AOE 3 | . . . . . 3 Classes Destroyed 8 | 3 4 . . . 1 Worker 2 | 1 1 . . . . Builder 1 | . . . . . 1 Tunneler 3 | 2 . 1 . . . Hauler 1 | . 1 . . . . Recycler 1 | 1 . . . . . Watcher 3 | . 3 . . . . Swarmer 14 | . 8 2 . . 4 Grunt 8 | . 5 2 . . 1 Best Kill Streak 5 | 3 3 2 . . 5 Combat Bots Only 4 | . 3 2 . . 4 Max Kills in Single Turn 3 | 1 1 1 . . 3 Gunslinging . | . . . . . . Exploded 2 | . . . . . 2 Melee . | . . . . . . Uniques/NPCs Destroyed . | . . . . . . Combat | -11 -10 -10 -10 -9 -8 -------- Run | Scr Mat Min Exi Min Mat Damage Taken 1485 | . 521 230 . . 734 Core 217 | . 56 45 . . 116 Absorbed by Shields . | . . . . . . Core Remaining (%) 79 | 100 . . . 59 . Volleys Fired 113 | 15 65 21 . . 12 Largest 2 | 2 2 2 . . 1 Hottest 40 | 40 40 40 . . 30 Shots Fired 198 | 30 129 27 . . 12 Gun 196 | 30 129 27 . . 10 Cannon . | . . . . . . Launcher 2 | . . . . . 2 Special . | . . . . . . Kinetic 196 | 30 129 27 . . 10 Thermal . | . . . . . . Explosive 2 | . . . . . 2 Electromagnetic . | . . . . . . Robot Hit Streak 15 | 10 11 15 . . 7 Robot Miss Streak 3 | 3 3 2 . . 1 Penetration Max . | . . . . . . Secondary Targets 2 | . 2 . . . . Max Gunslinging Chain 1 | . 1 . . . . Shots Hit Robots 141 | 23 87 22 . . 9 Core Hits 63 | 9 35 10 . . 9 Critical Kills . | . . . . . . Critical Parts Destroyed . | . . . . . . Critical Strikes . | . . . . . . Melee Attacks . | . . . . . . Impact . | . . . . . . Slashing . | . . . . . . Piercing . | . . . . . . Sneak Attacks . | . . . . . . Combat Hostiles . | . . . . . . Follow-up Attacks . | . . . . . . Damage Inflicted 1489 | 188 714 183 . . 404 Guns 1149 | 188 700 183 . . 78 Cannons . | . . . . . . Explosions 319 | . . . . . 319 Melee . | . . . . . . Ramming 21 | . 14 . . . 7 Kinetic 1149 | 188 700 183 . . 78 Thermal . | . . . . . . Explosive 319 | . . . . . 319 Electromagnetic . | . . . . . . Impact . | . . . . . . Slashing . | . . . . . . Piercing . | . . . . . . Highest Corruption . | . . . . . . Average Corruption . | . . . . . . Corruption Purged . | . . . . . . Corruption Blocked . | . . . . . . Overload Shots . | . . . . . . Overflow Damage 23 | . . . . . 23 Projectiles . | . . . . . . Explosions 23 | . . . . . 23 Melee . | . . . . . . Knockbacks . | . . . . . . Impact . | . . . . . . Kinetic . | . . . . . . Secondary . | . . . . . . Self-Inflicted Damage 40 | . . . . . 40 Shots 2 | . . . . . 2 Rammed 4 | . 3 . . . 1 Targets Rammed 4 | . 3 . . . 1 Kicked . | . . . . . . Crushed . | . . . . . . Highest Temperature 18 | . 12 10 . . 18 Average Temperature 7 | . 7 5 . . 9 Received Heat Transfer 630 | . 186 111 . . 333 Siege Activations . | . . . . . . Robots Corrupted . | . . . . . . Combat Hostiles . | . . . . . . Parts Fried . | . . . . . . Impact Corruptions . | . . . . . . Robots Melted . | . . . . . . Combat Hostiles . | . . . . . . Parts Melted . | . . . . . . Heat Transferred . | . . . . . . Parts Sabotaged . | . . . . . . Parts Stolen . | . . . . . . Parts Stripped . | . . . . . . Power Chain Reactions . | . . . . . . Missiles Intercepted . | . . . . . . Alert | -11 -10 -10 -10 -9 -8 ------- Run | Scr Mat Min Exi Min Mat Peak Influence 222 | 20 222 120 . . 99 Initial 11 | . 11 . . . . Average 48 | 10 58 50 . . 16 Maximum Alert Level 1 | . 1 . . . . Low Security (%) 97 | 100 95 100 . 100 100 Level 1 2 | . 4 . . . . Level 2 . | . . . . . . Level 3 . | . . . . . . Level 4 . | . . . . . . Level 5 . | . . . . . . High Security . | . . . . . . Max Security . | . . . . . . Squads Dispatched 5 | . 2 . . . 3 Investigation 4 | . 2 . . . 2 Extermination . | . . . . . . Reinforcement 1 | . . . . . 1 Assault . | . . . . . . Garrison . | . . . . . . Intercept . | . . . . . . Searches Triggered . | . . . . . . Construction Impeded . | . . . . . . Haulers Reinforced . | . . . . . . Active Scanning Responses . | . . . . . . Cargo Convoy Interrupts . | . . . . . . Stealth | -11 -10 -10 -10 -9 -8 --------- Run | Scr Mat Min Exi Min Mat Distress Signals 2 | . . . . . 2 Communications Jammed . | . . . . . . Distress Signals . | . . . . . . Times Spotted 38 | . 19 5 . . 14 Peak Tracking Total 12 | . 3 3 . . 12 Tactical Retreats 2 | . 1 1 . . . Traps | -11 -10 -10 -10 -9 -8 ------- Run | Scr Mat Min Exi Min Mat Traps Triggered 2 | . 2 . . . . Indirectly . | . . . . . . Trap Hack Attempts . | . . . . . . Triggered . | . . . . . . Disarmed . | . . . . . . Reprogrammed . | . . . . . . Reused . | . . . . . . Traps Extracted . | . . . . . . Installed . | . . . . . . Triggered . | . . . . . . Machines | -11 -10 -10 -10 -9 -8 ---------- Run | Scr Mat Min Exi Min Mat Machines Disabled . | . . . . . . Max in Single Turn . | . . . . . . Machines Sabotaged . | . . . . . . Garrisons Compromised . | . . . . . . Overloaded Fab Kills . | . . . . . . Hacking | -11 -10 -10 -10 -9 -8 --------- Run | Scr Mat Min Exi Min Mat Machines Accessed 11 | . 7 . 1 . 3 Terminals 9 | . 7 . . . 2 Fabricators . | . . . . . . Repair Stations . | . . . . . . Recycling Units 1 | . . . . . 1 Scanalyzers . | . . . . . . Garrison Access . | . . . . . . Total Hacks 31 | . 20 . 1 . 10 Successful 12 | . 9 . 1 . 2 Failed 19 | . 11 . . . 8 Catastrophic 3 | . 2 . . . 1 Database Lockouts . | . . . . . . Manual 28 | . 19 . 1 . 8 Terminals 28 | . 20 . . . 8 Fabricators . | . . . . . . Repair Stations . | . . . . . . Recycling Units 2 | . . . . . 2 Scanalyzers . | . . . . . . Garrison Access . | . . . . . . Terminal Hacks 10 | . 8 . 1 . 1 Record 1 | . . . 1 . . Part Schematic 1 | . 1 . . . . Prototype ID Bank 1 | . 1 . . . . Branch Access Points 1 | . 1 . . . . Terminal Index 2 | . 1 . . . 1 Alert Level 1 | . 1 . . . . Unreport Threat 1 | . 1 . . . . Recall Investigation 1 | . 1 . . . . Hauler Manifests 1 | . 1 . . . . Fabricator Hacks . | . . . . . . Repair Station Hacks . | . . . . . . Recycling Unit Hacks 1 | . . . . . 1 Retrieve Components 1 | . . . . . 1 Scanalyzer . | . . . . . . Garrison Access Hacks . | . . . . . . Unauthorized Hacks 1 | . 1 . . . . Terminals 1 | . 1 . . . . Botnet 1 | . 1 . . . . Fabricators . | . . . . . . Repair Stations . | . . . . . . Recycling Units . | . . . . . . Scanalyzers . | . . . . . . Garrison Access . | . . . . . . Data Cores Recovered . | . . . . . . Used . | . . . . . . Hacking Detections 9 | . 6 . . . 3 Full Trace Events 5 | . 3 . . . 2 Feedback Events . | . . . . . . Feedback Blocked . | . . . . . . Robot Schematics Acquired . | . . . . . . Robots Built . | . . . . . . Authchips . | . . . . . . Time . | . . . . . . Total Robot Build Rating . | . . . . . . Part Schematics Acquired 1 | . 1 . . . . Parts Built . | . . . . . . Authchips . | . . . . . . Time . | . . . . . . Total Part Build Rating . | . . . . . . Parts Repaired . | . . . . . . Time . | . . . . . . Parts Recycled . | . . . . . . Recycled Matter . | . . . . . . Retrieved Matter . | . . . . . . Retrieved Components . | . . . . . . Parts Scanalyzed . | . . . . . . Part Schematics Acquired . | . . . . . . Parts Damaged . | . . . . . . Bothacking | -11 -10 -10 -10 -9 -8 ------------ Run | Scr Mat Min Exi Min Mat Used RIF Installer . | . . . . . . Robots Hacked . | . . . . . . Non-combat . | . . . . . . Combat . | . . . . . . Robot Hacks Applied . | . . . . . . Relay Couplers Released . | . . . . . . Fabnet Peak Effective % . | . . . . . . Robots Rewired . | . . . . . . Allies Hacked . | . . . . . . Hacks Repelled . | . . . . . . Allies | -11 -10 -10 -10 -9 -8 -------- Run | Scr Mat Min Exi Min Mat Total Allies 2 | . . 2 . . . Largest Group 2 | . . 2 1 . . Highest-Rated Group 47 | . . 47 31 . . Highest-Rated Ally 31 | . . 31 31 . . Total Orders . | . . . . . . Ally Attacks . | . . . . . . Total Damage . | . . . . . . Kills . | . . . . . . Allies Corrupted . | . . . . . . Allies Melted . | . . . . . . Intel | -11 -10 -10 -10 -9 -8 ------- Run | Scr Mat Min Exi Min Mat Robot Analysis Total . | . . . . . . Derelict Logs Recovered 1 | . . 1 . . . Drone Launches . | . . . . . . Drone Recoveries . | . . . . . . Exploration | -11 -10 -10 -10 -9 -8 ------------- Run | Scr Mat Min Exi Min Mat Turns Passed 2808 | 213 1424 559 391 39 182 Spaces Moved 1554 | 104 767 321 243 25 94 Core 7 | 7 . . . . . Treads 1547 | 97 767 321 243 25 94 Legs . | . . . . . . Wheels . | . . . . . . Hover . | . . . . . . Flight . | . . . . . . Fastest Speed 50 | 50 160 160 160 160 160 Average Speed 159 | 152 160 160 160 160 160 Slowest Speed 160 | 160 160 160 160 160 160 Overloaded Moves . | . . . . . . Propulsion Burnouts . | . . . . . . Robots Hopped . | . . . . . . Cave-ins Triggered . | . . . . . . Exploration Rate (%) 38 | 4 85 61 61 7 15 Regions Visited 5 Branch Regions 3 Pre-discovered Areas 1 | . . 1 . . . Known Exits Taken 1 | . 1 . . . . Unknown Exits Taken 4 | 1 . 1 1 1 . Scrap Searched 1 | . . 1 . . . Spaces Dug . | . . . . . . Terrain Destroyed 15 | . . . . . 15 Melee . | . . . . . . Projectile . | . . . . . . AOE 15 | . . . . . 15 Terrain Rammed . | . . . . . . Walls Destroyed . | . . . . . . Machines Disabled . | . . . . . . Actions | -11 -10 -10 -10 -9 -8 --------- Run | Scr Mat Min Exi Min Mat Total 1722 | 134 859 345 246 24 114 Wait 8 | . 8 . . . . Move 1549 | 103 766 320 242 24 94 Hop . | . . . . . . Pick Up 24 | 9 10 3 1 . 1 Fast Attach . | . . . . . . Attach 18 | 7 5 1 . . 5 Detach 2 | . . . 1 . 1 Swap 2 | . 1 . 1 . . Drop 2 | . 1 . 1 . . Fire 113 | 15 65 21 . . 12 Melee . | . . . . . . Ram . | . . . . . . Kick . | . . . . . . Crush 4 | . 3 . . . 1 Escape Stasis . | . . . . . . Rewire . | . . . . . . Trap . | . . . . . . Miscellaneous . | . . . . . . Route ------- -11/Scrapyard -10/Materials (discovered 4 exits: [*Mat x3] / *Min) -10/Mines (discovered 2 exits: [*Mat] / *Exi) -10/Exiles -9/Mines -8/Materials History --------- Turn | Location | Event 54 | -11/Scrapyard | Discovered new exit (range 15) 214 | -11/Scrapyard | Entered Materials 316 | -10/Materials | Build established: Mutant 425 | -10/Materials | Discovered new exit (range 12) 719 | -10/Materials | Discovered new exit (range 13) 722 | -10/Materials | Discovered new exit (range 12) 881 | -10/Materials | Identified exit to Mines 929 | -10/Materials | Lost 3 parts (1p2n) 1041 | -10/Materials | Discovered new exit (range 7) 1638 | -10/Materials | Entered Mines 1639 | -10/Mines | Assembled infested the area 1699 | -10/Mines | Learned location of Storage (-9) 1760 | -10/Mines | Discovered new exit (range 13) 2191 | -10/Mines | Discovered new exit (range 5) 2197 | -10/Mines | Entered Exiles 2197 | -10/Exiles | Accompanied by 1 ally 2227 | -10/Exiles | Led the pair of lost Derelicts to a safe place 2237 | -10/Exiles | Met 8R-AWN 2266 | -10/Exiles | Met EX-HEX 2309 | -10/Exiles | Met EX-BIN 2330 | -10/Exiles | Aligned with FarCom system 2332 | -10/Exiles | Given EX-Vault access code 2370 | -10/Exiles | Opened EX-Vault 2378 | -10/Exiles | Found Prototype Slashing Weapon 2402 | -10/Exiles | Identified Longsword +1 2417 | -10/Exiles | Warned to stay clear of 0b10 Research branches 2460 | -10/Exiles | Met EX-DEC 2566 | -10/Exiles | Discovered new exit (range 14) 2588 | -10/Exiles | Left Exiles lab with Longsword +1 2588 | -10/Exiles | Entered Mines 2611 | -9/Mines | Discovered new exit (range 9) 2627 | -9/Mines | Entered Materials 2627 | -8/Materials | Evolved 4 slots: Utility x2, Weapon x2 2809 | -8/Materials | Self-destructed Last Messages --------------- 02796_ Ion Engine destroyed. 02798_ Acquired 3 matter. 02798_ R-06 Scavenger collects Wheel. 02798_ K-01 Serf collects debris. 02799_ The unstable cave ceiling collapses. 02799_ Slug penetrates Wall. 02799_ Lgt. Treads destroyed. 02800_ Acquired 1 matter. 02800_ K-01 Serf collects debris. 02802_ R-06 Scavenger collects Wheel. 02803_ S-10 Pest destroyed. 02803_ Imp. Light Armor Plating destroyed. 02804_ Slug penetrates Wall. 02804_ R-06 Scavenger collects Com. Wheel. 02805_ K-01 Serf collects debris. 02805_ R-06 Scavenger collects Flight Unit. 02805_ Acquired 3 matter. 02807_ R-06 Scavenger collects Com. Wheel. 02808_ Acquired 3 matter. 02809_ K-01 Serf collects debris. Map ----- +----------------------------------------------------+ | ?????????????????????????????????????????????????? | | ?????????????????????????????????????????????????? | | ?????????????????????????????????????????????????? | | ???????????#?????????????????????????????????????? | | ?????????????????????????????????????????????????? | | ?#???????????????????????????????????????????????? | | ????? ??????????????#????????????????????????????? | | ??????????#??????????????????????????????????????? | | ????????????????????????????#????????????????????? | | ?????????????? ??????????????????????????????????? | | ???? ????????????????????????????????????????????? | | ????????????#?? ?????????????????????????????????? | | ?###+###?????????????????????????? ??????????????? | | ?# #?????? ??? ? ?? ????????????????????????? | | ?# T" ############+#????????????????????????????? | | ## " w????"???????????????????????? | | ?# ############ #??""""???#??????????????????? | | ?# #?#????????# # """""????????? ???????????? | | ### ##?#???###??# + """""???????? ??????????? | | ### #?????##!!??# #######?????? w! ???????????? | | ## #?????#! ### ###?????????u ????????????? | | + #?????#! ######### " ???????????? | | ## #?????#! "" k g T ???????????? | | ### ##?????#! T r ghg "??????????????? | | #?# #??????##!! g gg ???????????????? | | #?# #???????#### % #g@ ##### ????????????????? | | #?# #??????#???## r r #???????????????????? | | #?# #??????###### * ! #??#????????????????? | | #?# ###?? ?+ k #???????????????????? | | ## #????# % ! #???????????????????? | | #????+ #???????????????????? | | #????###+##### = #???????????????????? | | #????????????###### ###???????????????????? | | ## #??????????? ??###?##?????????????????????? | | ??# ##?????????????????????????????????????????? | | ??? ##?????????????????????????????????????????? | | ??# #??????????????????????????????????????????? | | ????? #??????????????????????????????????????????? | | ?????? ??????????????????????????????????????????? | | ??????? ?????????????????????????????????????????? | | ???????? ????????????????????????????????????????? | | ?????????????????????????????????????????????????? | | ?????????????????????????????????????????????????? | | ?????????????????????????????????????????????????? | | ?????????????????????????????????????????????????? | | ?????????????????????????????????????????????????? | | ?????????????????????????????????????????????????? | | ?????????????????????????????????????????????????? | | ?????????????????????????????????????????????????? | | ?????????????????????????????????????????????????? | +----------------------------------------------------+ Best States ------------- Heat Dissipation 31 Energy Generation 10 Energy Capacity 250 Matter Stores 300 Matter Capacity 300 Sight Range 16 Terrain Scan Range 16 Terrain Scan Density 10 Armor Coverage 150 Resistance: KI 20 Resistance: TH 20 Resistance: EX 20 Resistance: EM 20 Resistance: I 20 Resistance: S 20 Resistance: P 20 Evasion (%) 40 Recoil Reduction 2 Offensive Hacking 10 Item Schematics ----------------- Lrg. Storage Unit | -10/Materials | Hacked Robot Schematics ------------------ None Fabricated ------------ Nothing Alien Tech Used ----------------- None Achievements -------------- None Challenges ------------ None Game ------ Seed HardcellChipWell Manual? 0 Play Time 00:19:48 Cumulative 206.3 hours Start 2022.08.22 @ 18:46:44 End 2022.08.22 @ 19:14:08 Sessions 1 Manual Loads 0 Difficulty Adventurer Special Mode None Game No. 239 Rogue 110 Adventurer 80 Explorer 49 Win Type - Total 8 Types 7/0/1/0/0/0/0/0/0 Lore% 31 Gallery% 65 Achievement% 55 Wizard Run 0 Options --------- ASCII 0 Keyboard 0 Movement Mouse Keybinds 0 Fullscreen 1 Font 12/Smallcaps Map View 83x54 Tactical HUD 1 Map Filters NONE Filters NONE Steam 1 RUN: 449ac925-d8d3-493b-bb73-dfce5c4512d9